bitfinex-derivatives/quotes_ETHF0:USTF0_20250427
["timestamp","ask_amount","ask_price","bid_price","bid_amount"]
[1745757257278,1.90471,1799.3,1799.2,1.6156]
[1745757257579,3.57181,1799.3,1799.2,2.72696]
[1745757258077,3.57181,1799.3,1799.2,1.6156]
[1745757258872,2.4605,1799.3,1799.2,2.72696]
[1745757259070,1.6671,1799.3,1799.2,2.72696]
[1745757259477,2.77839,1799.3,1799.2,2.72696]
[1745757259686,4.86926,1799.4,1799.2,1.6156]
[1745757259878,4.86926,1799.4,1799.3,2.5313]
[1745757260182,6.58466,1799.4,1799.3,2.5313]
[1745757264173,6.58466,1799.4,1799.2,1.11131]
[1745757264174,1.11136,1799.2,1799.1,1.91426]
[1745757264375,1.11142,1799.1,1799.0,4.9034]
[1745757264575,2.75642,1799.1,1799.0,1.6956]
[1745757264776,1.11148,1799.0,1798.9,1.11154]
[1745757264977,3.60528,1799.0,1798.9,1.11154]
[1745757265279,3.60528,1799.0,1798.8,0.8377]
[1745757265280,1.11154,1798.9,1798.8,0.8377]
[1745757265583,1.1116,1798.8,1798.7,6.79666]
[1745757267886,2.75659,1798.9,1798.8,1.1116]
[1745757268475,2.75659,1798.9,1798.8,2.7469]
[1745757269192,2.75659,1798.9,1798.8,2.75337036]
[1745757270592,1.96032,1799.0,1798.9,1.11154]
[1745757270888,2.4876,1799.0,1798.9,2.70094]
[1745757272090,3.59908,1799.0,1798.9,2.70094]
[1745757272289,1.6388,1799.0,1798.9,2.70094]
[1745757273393,4.81947,1799.1,1799.0,1.11148]
[1745757273683,3.708,1799.1,1799.0,3.59988]
[1745757274096,6.8025,1799.2,1799.1,1.11142]
[1745757274292,3.2078,1799.2,1799.1,3.55742]
[1745757275688,4.31916,1799.2,1799.1,3.55742]
[1745757276091,3.2078,1799.2,1799.1,3.55742]
[1745757276292,2.76634,1799.3,1799.2,1.11136]
[1745757276590,2.76634,1799.3,1799.2,2.72836]
[1745757277895,2.76634,1799.3,1799.2,1.617]
[1745757278096,2.76634,1799.3,1799.2,2.72836]
[1745757280598,2.76634,1799.3,1799.2,1.617]
[1745757280801,2.76634,1799.3,1799.2,2.72836]
[1745757281497,2.76634,1799.3,1799.2,1.617]
[1745757281695,1.11142,1799.1,1799.0,0.8495]
[1745757281895,1.11142,1799.1,1799.0,2.4728]
[1745757282095,1.11148,1799.0,1798.9,0.8208]
[1745757282297,1.11154,1798.9,1798.8,0.00647036]
[1745757282498,2.80024,1798.9,1798.8,0.00647036]
[1745757283600,7.80024,1798.9,1798.8,0.00647036]
[1745757284099,11.52224,1798.9,1798.8,0.00647036]
[1745757284905,6.52224,1798.9,1798.8,0.00647036]
[1745757286003,6.52224,1798.9,1798.8,1.62297036]
[1745757286195,4.31931,1799.0,1798.9,1.11154]
[1745757286502,8.00031,1799.0,1798.9,1.11154]
[1745757286699,8.00031,1799.0,1798.9,3.58224]
[1745757286902,6.8888,1799.0,1798.9,3.58224]
[1745757287791,3.681,1799.0,1798.9,3.58224]
[1745757288203,1.11143,1799.1,1799.0,1.11148]
[1745757288500,1.11143,1799.1,1799.0,2.71508]
[1745757288995,1.11148,1799.0,1798.9,0.8542]
[1745757289195,2.83048,1799.0,1798.9,0.8542]
[1745757289904,2.83048,1799.0,1798.9,2.4578]
[1745757290105,2.83048,1799.0,1798.9,3.56934]
[1745757290604,2.83048,1799.0,1798.9,2.4578]
[1745757293702,2.83048,1799.0,1798.9,3.56934]
[1745757294502,2.83048,1799.0,1798.9,2.4578]
[1745757295606,2.83048,1799.0,1798.9,3.56934]
[1745757295908,2.83048,1799.0,1798.9,2.4578]
[1745757296203,2.83048,1799.0,1798.9,3.56934]
[1745757300305,2.83048,1799.0,1798.9,1.6036]
[1745757300506,1.11154,1798.9,1798.8,0.00647036]
[1745757300713,1.11154,1798.9,1798.1,5.958]
[1745757300714,1.11191,1798.3,1798.2,6.4705]
[1745757300915,1.11191,1798.3,1798.2,7.58247]
[1745757301205,1.11191,1798.3,1798.2,48.38247]
[1745757301612,2.6954,1798.4,1798.3,1.11191]
[1745757301799,2.6954,1798.4,1798.3,2.70341]
[1745757302004,2.6954,1798.4,1798.3,1.5915]
[1745757303011,1.5835,1798.4,1798.3,2.70341]
[1745757303314,2.69535,1798.4,1798.3,2.70341]
[1745757303512,1.5835,1798.4,1798.3,2.70341]
[1745757304213,5.60057,1798.6,1798.4,1.11179]
[1745757304415,5.60057,1798.6,1798.5,1.11179]
[1745757304607,5.60057,1798.6,1798.5,0.8301]
[1745757304912,1.11179,1798.5,1798.4,1.5661]
[1745757305115,2.79449,1798.5,1798.4,1.5661]
[1745757305713,1.11185,1798.4,1798.3,0.8301]
[1745757306113,1.11185,1798.4,1798.3,2.399]
[1745757306709,1.11185,1798.4,1798.3,3.51091]
[1745757307315,1.6827,1798.5,1798.3,3.51091]
[1745757307316,2.79453,1798.5,1798.3,3.51091]
[1745757307517,2.79449,1798.5,1798.4,2.68075]
[1745757308019,2.79449,1798.5,1798.4,1.5689]
[1745757308519,2.79449,1798.5,1798.4,2.68075]
[1745757309109,1.11179,1798.5,1798.4,2.68075]
[1745757309512,4.4888,1798.6,1798.4,1.5689]
[1745757309711,5.60053,1798.6,1798.5,1.5743]
[1745757309909,7.17763,1798.6,1798.5,1.5743]
[1745757310716,6.36983,1798.6,1798.5,2.68609]
[1745757311011,5.2581,1798.6,1798.5,2.68609]
[1745757311212,5.2581,1798.6,1798.3,4.0379]
[1745757311419,5.2581,1798.6,1797.8,5.958]
[1745757311420,2.77979,1798.3,1797.9,3.2078]
[1745757311616,3.2078,1798.0,1797.1,14.29905984]
[1745757311814,1.11247,1797.4,1797.3,1.729]
[1745757312009,6.8898,1797.6,1797.3,1.729]
[1745757312318,8.5486,1797.6,1797.3,2.5272]
[1745757312618,4.79435,1797.6,1797.3,2.5272]
[1745757312917,4.79435,1797.6,1797.5,1.11241]
[1745757312918,3.682,1797.6,1797.5,1.11241]
[1745757313217,4.79434,1797.6,1797.4,2.84142]
[1745757313416,3.682,1797.6,1797.5,1.11241]
[1745757313618,3.682,1797.6,1797.5,2.84141]
[1745757313919,1.11232,1797.7,1797.5,1.729]
[1745757314116,1.11232,1797.7,1797.6,1.729]
[1745757314719,6.47407,1797.8,1797.6,1.729]
[1745757314917,5.3618,1797.8,1797.6,1.729]
[1745757315115,6.47402,1797.8,1797.7,0.8477]
[1745757315622,6.47402,1797.8,1797.7,2.5223]
[1745757316213,0.02,1797.8,1797.7,3.63458]
[1745757320516,1.13222,1797.8,1797.7,2.5223]
[1745757320817,1.11234,1797.6,1797.3,4.5042]
[1745757321022,2.71602,1797.7,1797.5,1.11235]
[1745757321225,2.71602,1797.7,1797.6,1.11234]
[1745757321721,0.02,1797.8,1797.7,1.11228]
[1745757322417,0.02,1797.8,1797.7,1.90148]
[1745757322617,0.02,1797.8,1797.7,2.74808]
[1745757323126,6.9138,1798.1,1798.0,1.1121]
[1745757323514,1.6037,1798.3,1798.2,1.11197]
[1745757323720,8.02563,1798.5,1798.3,1.11186]
[1745757323921,4.81783,1798.5,1798.0,4.8934]
[1745757324130,1.1119,1798.4,1798.2,1.11194]
[1745757324428,2.6766,1798.4,1798.3,2.79751]
[1745757324728,2.6766,1798.4,1798.3,1.6856]
[1745757325227,1.5647,1798.4,1798.3,2.79751]
[1745757325455,4.81783,1798.5,1798.3,2.79751]
[1745757325623,6.9138,1798.5,1798.2,1.11197]
[1745757325822,1.11191,1798.3,1798.2,1.11197]
[1745757326328,1.11191,1798.3,1798.2,41.91197]
[1745757326525,1.5647,1798.4,1798.3,1.11191]
[1745757326729,4.81781,1798.5,1798.4,1.11185]
[1745757326926,6.9138,1798.9,1798.3,2.77979]
[1745757327228,2.83178,1798.6,1798.4,1.11183]
[1745757327824,5.425,1798.5,1797.4,3.2078]
[1745757328126,5.425,1798.5,1797.6,1.11234]
[1745757328127,1.11225,1797.8,1797.6,1.11234]
[1745757328424,1.11225,1797.8,1797.5,40.8]
[1745757328627,2.83225,1797.8,1797.6,1.11234]
[1745757329029,1.72,1797.8,1797.5,41.91237]
[1745757329222,2.83225,1797.8,1797.6,1.11234]
[1745757329531,1.72,1797.8,1797.5,40.8]
[1745757330327,1.11233,1797.7,1797.5,41.91239]
[1745757330525,1.72,1797.8,1797.6,3.2078]
[1745757330742,5.14618,1797.9,1797.7,1.11228]
[1745757330933,5.14618,1797.9,1797.7,2.77248]
[1745757331532,0.8262,1797.9,1797.8,1.11222]
[1745757331830,1.6197,1798.0,1797.7,1.6602]
[1745757332035,1.6197,1798.0,1797.9,1.11216]
[1745757332222,2.73166,1798.3,1797.8,3.2078]
[1745757332426,2.73166,1798.3,1798.1,1.112]
[1745757332733,2.73152,1798.3,1798.1,1.11189]
[1745757333529,1.6197,1798.3,1798.1,1.11189]
[1745757333834,1.11188,1798.2,1798.1,1.11192]
[1745757334129,3.2078,1798.4,1798.2,1.11186]
[1745757334334,4.31955,1798.4,1798.2,1.11182]
[1745757334545,3.2078,1798.4,1798.3,1.1118]
[1745757334720,2.8151,1798.5,1798.4,1.11174]
[1745757335531,2.8151,1798.5,1798.3,4.31956]
[1745757336034,2.8151,1798.5,1798.4,1.11174]
[1745757336331,1.7034,1798.5,1798.3,3.2078]
[1745757336726,2.8151,1798.5,1798.3,4.31955]
[1745757336954,2.8151,1798.5,1798.4,1.11174]
[1745757337134,1.7034,1798.5,1798.4,1.11174]
[1745757337333,4.81765,1798.6,1798.5,1.11168]
[1745757337832,4.81765,1798.6,1798.3,3.2078]
[1745757337833,4.81767,1798.6,1798.3,3.2078]
[1745757338034,3.706,1798.6,1798.5,1.11168]
[1745757338530,1.7218,1798.7,1798.6,1.11162]
[1745757338734,4.81748,1798.9,1798.8,1.11149]
[1745757338929,6.49598,1798.9,1798.8,1.38939]
[1745757339535,6.49598,1798.9,1798.8,0.2779]
[1745757341237,5.3845,1798.9,1798.8,1.38939]
[1745757341732,1.6015,1799.1,1798.8,0.2779]
[1745757341933,1.11138,1799.0,1798.9,1.1114]
[1745757342335,2.82798,1799.0,1798.9,1.1114]
[1745757343626,2.82798,1799.0,1798.9,41.9114]
[1745757344141,2.82798,1799.0,1798.9,1.1114]
[1745757344344,2.82798,1799.0,1798.8,2.0025]
[1745757344345,1.11143,1798.9,1798.8,3.11398]
[1745757344534,2.82803,1798.9,1798.8,43.91398]
[1745757344939,1.7166,1798.9,1798.8,43.91398]
[1745757345636,2.82803,1798.9,1798.8,43.91398]
[1745757347230,1.7166,1798.9,1798.8,43.91398]
[1745757348431,0.8126,1799.1,1799.0,1.11137]
[1745757348639,1.587,1799.2,1799.1,1.11131]
[1745757348834,7.78,1799.4,1799.3,1.11118]
[1745757348835,4.5884,1799.4,1799.3,1.11118]
[1745757349137,2.69809,1799.5,1799.4,1.11112]
[1745757349535,1.587,1799.5,1799.4,4.31892]
[1745757349840,3.763,1799.8,1799.6,1.111]
[1745757350040,3.763,1799.8,1799.5,2.5628]
[1745757350241,1.11096,1799.7,1799.6,1.11098]
[1745757350439,1.587,1799.7,1799.6,1.11098]
[1745757350633,3.763,1799.8,1799.7,1.11094]
[1745757350833,4.87387,1799.8,1799.7,1.11094]
[1745757351029,5.4138,1799.8,1799.7,1.38864]
[1745757351741,5.4138,1799.8,1799.7,3.03314]
[1745757352040,18.37219425,1800.0,1799.7,3.03314]
[1745757352041,19.48299425,1800.0,1799.9,1.11081]
[1745757352243,19.48294425,1800.0,1799.8,4.31863]
[1745757352436,21.13374425,1800.0,1799.9,2.75531]
[1745757352767,1.5978,1800.4,1799.9,1.6445]
[1745757352944,2.4523,1800.4,1800.0,0.8425]
[1745757353137,3.56282,1800.4,1800.2,1.11061]
[1745757353342,1.11057,1800.3,1800.1,2.75513]
[1745757353645,1.6508,1800.3,1800.2,2.75513]
[1745757354942,1.11063,1800.2,1800.1,3.2078]
[1745757355242,2.76139,1800.3,1800.1,4.31849]
[1745757355442,1.11063,1800.2,1800.1,3.2078]
[1745757355641,2.81613,1800.2,1800.1,3.2078]
[1745757355838,1.11078,1800.0,1799.7,1.0733]
[1745757356147,1.7055,1799.9,1799.8,2.83957]
[1745757356444,1.11069,1800.1,1800.0,1.11073]
[1745757356738,1.11069,1800.1,1799.8,1.7287]
[1745757356739,2.81619,1800.1,1799.9,4.31858]
[1745757356940,2.81619,1800.1,1799.9,3.2078]
[1745757357140,1.11075,1800.0,1799.9,3.2078]
[1745757357344,1.6332,1800.0,1799.9,4.31859]
[1745757357734,1.11063,1800.2,1800.0,1.1107]
[1745757357935,2.74383,1800.2,1800.0,1.6135]
[1745757358140,1.6332,1800.2,1800.1,1.11069]
[1745757358345,3.2078,1800.3,1800.2,1.11063]
[1745757358552,5.95161,1800.3,1800.1,1.11067]
[1745757358847,5.95157,1800.3,1800.2,1.11063]
[1745757359061,4.841,1800.3,1800.2,1.11063]
[1745757359237,1.11069,1800.2,1800.0,2.4354]
[1745757359437,1.6332,1800.1,1800.0,3.54615]
[1745757359946,3.2078,1800.3,1800.2,1.11063]
[1745757360164,4.31837,1800.3,1800.2,1.11063]
[1745757360345,1.11057,1800.3,1800.2,1.11063]
[1745757360537,2.72057,1800.3,1800.2,1.11063]
[1745757360747,1.61,1800.3,1800.2,1.11063]
[1745757361144,1.91203,1800.4,1800.3,1.11057]
[1745757361448,0.8015,1800.4,1800.3,1.11057]
[1745757361642,1.11052,1800.4,1800.3,1.11054]
[1745757361946,6.48249,1800.5,1800.4,1.1105]
[1745757362144,1.11057,1800.3,1800.2,2.71781]
[1745757362745,2.77648,1800.3,1799.9,3.2078]
[1745757362939,1.11086,1799.9,1799.8,1.11087]
[1745757363140,7.0011,1800.2,1800.0,1.11071]
[1745757363346,1.11069,1800.1,1800.0,1.11071]
[1745757363547,1.11069,1800.1,1800.0,1.7285]
[1745757364047,4.5652,1800.2,1800.0,2.5113]
[1745757364347,3.761,1800.2,1800.0,3.622]
[1745757364547,4.87167,1800.2,1800.1,1.7285]
[1745757365144,4.87167,1800.2,1800.1,2.83919]
[1745757365540,3.761,1800.2,1800.1,2.83919]
[1745757365741,1.6011,1800.3,1800.2,1.11063]
[1745757366047,1.6011,1800.3,1800.2,2.83913]
[1745757366748,2.71167,1800.3,1800.2,2.83913]
[1745757367048,1.6011,1800.3,1800.2,2.83913]
[1745757367754,6.9688,1800.5,1800.4,1.1105]
[1745757368051,9.7175,1800.5,1800.4,1.1105]
[1745757368259,9.7175,1800.5,1800.3,1.6316]
[1745757368446,9.7175,1800.5,1800.4,1.1105]
[1745757368657,9.71749,1800.5,1800.3,1.6316]
[1745757369051,9.71749,1800.5,1800.4,1.1105]
[1745757369250,8.607,1800.5,1800.4,1.1105]
[1745757369656,8.607,1800.5,1800.4,1.9299]
[1745757370049,9.71744,1800.5,1800.4,1.9299]
[1745757371054,9.71744,1800.5,1800.4,0.8194]
[1745757371256,9.71744,1800.5,1800.4,1.9299]
[1745757371449,6.50964,1800.5,1800.4,3.5712]
[1745757371768,3.76,1800.8,1800.7,1.11032]
[1745757372554,1.11012,1801.1,1801.0,1.11013]
[1745757372948,2.75842,1801.1,1801.0,1.11013]
[1745757373144,2.75842,1801.1,1801.0,1.38743]
[1745757373341,1.6483,1801.1,1801.0,1.38743]
[1745757373553,7.482,1801.2,1801.1,1.11007]
[1745757373748,3.722,1801.2,1801.1,5.98077]
[1745757374050,1.6483,1801.3,1801.2,1.11001]
[1745757374251,7.7912,1801.6,1801.2,1.6629]
[1745757374452,1.10983,1801.5,1801.3,1.1099]
[1745757374769,1.6483,1801.5,1801.4,1.10989]
[1745757374959,2.75813,1801.5,1801.4,1.10989]
[1745757375156,1.6483,1801.5,1801.4,1.10989]
[1745757375357,2.75813,1801.5,1801.3,1.1099]
[1745757375660,2.75813,1801.5,1801.4,2.68019]
[1745757375661,1.6483,1801.5,1801.4,2.68019]
[1745757376354,1.10976,1801.6,1801.4,2.68013]
[1745757376664,1.10983,1801.5,1801.4,2.68016]
[1745757376956,8.22969,1801.7,1801.3,0.8594]
[1745757377151,1.11007,1801.1,1801.0,0.2773]
[1745757377656,8.07087,1801.1,1801.0,0.2773]
[1745757378042,4.86307,1801.1,1801.0,0.2773]
[1745757378245,10.31847,1801.1,1801.0,0.2773]
[1745757380050,13.52627,1801.1,1801.0,0.2773]
[1745757380355,10.31847,1801.1,1801.0,0.2773]
[1745757381055,10.31847,1801.1,1801.0,1.38743]
[1745757381274,10.31847,1801.1,1801.0,0.2773]
[1745757381443,9.2084,1801.1,1801.0,1.38743]
[1745757381653,9.2084,1801.1,1801.0,4.59523]
[1745757381854,9.2084,1801.1,1801.0,1.38743]
[1745757382047,7.475,1801.1,1801.0,1.38743]
[1745757382247,7.475,1801.1,1801.0,0.2773]
[1745757382248,4.86307,1801.1,1801.0,0.2773]
[1745757383751,4.86307,1801.1,1801.0,3.06513]
[1745757383955,3.753,1801.1,1801.0,3.06513]
[1745757384149,8.58507,1801.1,1801.0,3.06513]
[1745757384349,7.475,1801.1,1801.0,3.06513]
[1745757384544,1.10986,1801.5,1801.1,2.77519]
[1745757384749,2.82546,1801.5,1801.4,1.10989]
[1745757384953,1.7156,1801.5,1801.4,1.10989]
[1745757385254,1.10978,1801.6,1801.5,1.10983]
[1745757385653,4.9234,1801.7,1801.5,1.10983]
[1745757385952,1.10992,1801.4,1801.2,7.54086]
[1745757386256,1.1098,1801.6,1801.4,1.10984]
[1745757386451,1.1098,1801.6,1801.5,1.5947]
[1745757386852,1.1098,1801.6,1801.5,2.70453]
[1745757387057,1.10976,1801.6,1801.5,2.70453]
[1745757387357,3.2078,1801.7,1801.5,1.5947]
[1745757387753,3.2078,1801.7,1801.6,1.10976]
[1745757387754,4.31754,1801.7,1801.6,1.10976]
[1745757387946,1.10976,1801.6,1801.5,2.70449]
[1745757388144,1.10976,1801.6,1801.5,1.5947]
[1745757388350,1.10976,1801.6,1801.5,5.3167]
[1745757389562,1.10976,1801.6,1801.5,3.722]
[1745757389756,2.77326,1801.6,1801.5,3.9991]
[1745757390145,2.77326,1801.6,1801.5,0.2771]
[1745757390859,4.31754,1801.7,1801.6,1.10976]
[1745757391056,4.31754,1801.7,1801.6,2.72336]
[1745757391255,4.31754,1801.7,1801.6,1.6136]
[1745757391458,4.31754,1801.7,1801.5,0.2771]
[1745757391459,1.10976,1801.6,1801.5,0.2771]
[1745757391651,2.82156,1801.6,1801.5,0.2771]
[1745757391858,1.10976,1801.6,1801.5,1.38693]
[1745757392259,1.10976,1801.6,1801.5,1.38689]
[1745757392461,1.10976,1801.6,1801.5,0.2771]
[1745757392956,2.82156,1801.6,1801.5,0.2771]
[1745757393157,2.82156,1801.6,1801.5,3.00053]
[1745757393363,4.31755,1801.7,1801.5,3.00053]
[1745757393559,3.2078,1801.7,1801.6,1.10976]
[1745757393863,1.10976,1801.6,1801.5,3.00048]
[1745757394364,1.10976,1801.6,1801.5,6.72248]
[1745757394563,4.8148,1801.7,1801.6,1.10976]
[1745757394863,1.10976,1801.6,1801.5,6.7225]
[1745757395360,1.10976,1801.6,1801.5,3.0005]
[1745757395562,4.31755,1801.7,1801.6,1.10976]
[1745757395761,4.31755,1801.7,1801.6,2.77206]
[1745757396362,4.31755,1801.7,1801.6,1.6623]
[1745757396664,4.31755,1801.7,1801.6,2.77206]
[1745757396964,3.2078,1801.7,1801.6,4.36726]
[1745757397167,4.3175,1801.7,1801.6,4.36726]
[1745757397365,4.3175,1801.7,1801.6,3.2575]
[1745757397566,4.3175,1801.7,1801.6,4.36726]
[1745757398056,4.3175,1801.7,1801.6,3.2575]
[1745757398264,4.3175,1801.7,1801.6,4.36726]
[1745757399966,4.3175,1801.7,1801.6,3.2575]
[1745757400168,3.2078,1801.7,1801.6,4.36726]
[1745757400558,4.3175,1801.7,1801.6,4.36726]
[1745757400868,4.3175,1801.7,1801.6,3.2575]
[1745757402267,2.71668,1801.8,1801.7,1.1097]
[1745757402469,2.71668,1801.8,1801.7,2.7562]
[1745757402669,1.607,1801.8,1801.7,2.7562]
[1745757402853,5.12492,1801.9,1801.8,1.10964]
[1745757403056,5.12492,1801.9,1801.8,1.6596]
[1745757403265,6.85772,1801.9,1801.8,1.6596]
[1745757405265,1.10976,1801.6,1801.5,0.2771]
[1745757405466,1.10976,1801.6,1801.5,3.04653]
[1745757405769,2.84255,1801.7,1801.6,1.10976]
[1745757406063,1.10975,1801.7,1801.6,1.10976]
[1745757407160,1.10975,1801.7,1801.5,1.9367]
[1745757407371,1.10976,1801.6,1801.5,3.04648]
[1745757408974,1.10976,1801.6,1801.5,1.9367]
[1745757409162,1.10989,1801.4,1801.3,0.8204]
[1745757409866,1.10989,1801.4,1801.3,1.93035]
[1745757410065,1.10989,1801.4,1801.3,2.5169]
[1745757410374,1.10986,1801.5,1801.4,1.10989]
[1745757410674,1.1098,1801.6,1801.5,1.10983]
[1745757410870,4.85373,1801.7,1801.6,1.10976]
[1745757411071,1.10976,1801.6,1801.5,2.80631]
[1745757411375,1.10976,1801.6,1801.5,6.52831]
[1745757411574,1.10976,1801.6,1801.5,5.4185]
[1745757411769,1.10976,1801.6,1801.5,3.722]
[1745757412269,2.4082,1801.7,1801.4,1.6111]
[1745757412471,1.10983,1801.5,1801.4,3.50746]
[1745757413876,1.10983,1801.5,1801.4,2.3976]
[1745757414566,1.10983,1801.5,1801.4,3.50749]
[1745757414869,1.10973,1801.7,1801.4,5.6054]
[1745757415064,1.10976,1801.6,1801.5,2.67977]
[1745757415275,1.10976,1801.6,1801.5,1.57]
[1745757415771,1.10983,1801.5,1801.4,5.61836]
[1745757415966,1.10983,1801.5,1801.4,4.5085]
[1745757416189,1.10983,1801.5,1801.4,0.7865]
[1745757416674,1.10983,1801.5,1801.4,2.3565]
[1745757417069,1.10989,1801.4,1801.3,0.8204]
[1745757417274,1.11001,1801.2,1801.1,5.958]
[1745757417570,2.77511,1801.2,1800.8,3.2078]
[1745757417779,1.1102,1800.9,1800.8,3.2078]
[1745757417963,1.1102,1800.9,1800.8,4.9011]
[1745757418778,1.1102,1800.9,1800.8,6.01136]
[1745757419171,2.72137,1801.0,1800.8,6.01136]
[1745757419380,2.72137,1801.0,1800.9,1.6933]
[1745757419576,1.1102,1800.9,1800.8,3.2078]
[1745757419875,2.7214,1800.9,1800.8,4.9011]
[1745757420878,2.7214,1800.9,1800.8,6.01136]
[1745757421175,1.6112,1800.9,1800.7,41.5861]
[1745757421369,2.82966,1800.8,1800.7,40.8]
[1745757423371,2.82966,1800.8,1800.7,1.6226]
[1745757423975,2.82966,1800.8,1800.7,2.73292]
[1745757424176,2.82966,1800.8,1800.7,3.58242]
[1745757424375,2.82966,1800.8,1800.7,2.4721]
[1745757425373,0.00427597,1800.9,1800.7,2.4721]
[1745757425571,0.00427597,1800.9,1800.8,2.79086]
[1745757425768,4.31788,1801.1,1801.0,1.11013]
[1745757425970,4.85498,1801.3,1801.1,1.11007]
[1745757426173,1.10998,1801.3,1801.2,1.6806]
[1745757426381,2.72958,1801.3,1801.2,1.6806]
[1745757428579,2.72958,1801.3,1801.2,2.79061]
[1745757428782,2.72958,1801.3,1801.2,2.4766]
[1745757429786,1.10998,1801.3,1801.2,2.4766]
[1745757430982,1.10998,1801.3,1801.2,3.58661]
[1745757431889,1.10998,1801.3,1801.2,2.4766]
[1745757432788,2.70198,1801.3,1801.2,2.4766]
[1745757432991,2.70198,1801.3,1801.2,1.6806]
[1745757434692,1.11026,1800.8,1800.7,3.2078]
[1745757434893,1.11026,1800.8,1800.7,6.87592]
[1745757435188,2.77534,1801.1,1800.7,10.59787]
[1745757435389,1.11025,1800.9,1800.8,1.7273]
[1745757436985,1.11025,1800.9,1800.8,2.83756]
[1745757437386,1.11025,1800.9,1800.8,1.7273]
[1745757437891,1.11025,1800.9,1800.8,2.83756]
[1745757438419,1.6654,1801.0,1800.8,2.83756]
[1745757438593,1.6654,1801.0,1800.7,4.0383]
[1745757438594,2.77558,1801.0,1800.9,1.6543]
[1745757440489,1.6654,1801.0,1800.9,2.7645]
[1745757440685,1.11013,1801.0,1800.9,2.7645]
[1745757441608,1.11013,1801.0,1800.9,1.6543]
[1745757441793,1.11013,1801.0,1800.9,2.7645]
[1745757441998,1.11013,1801.0,1800.9,2.76445]
[1745757443098,1.11013,1801.0,1800.9,1.6543]
[1745757443638,1.11013,1801.0,1800.9,2.7645]
[1745757444815,1.11,1801.3,1800.9,9.42977]
[1745757445019,1.10988,1801.5,1801.3,1.10995]
[1745757445217,2.5114,1801.7,1801.4,6.4883]
[1745757445414,2.5114,1801.7,1801.5,1.6724]
[1745757445415,1.10981,1801.6,1801.5,1.6724]
[1745757445916,1.10981,1801.6,1801.5,2.78223]
[1745757446113,1.10976,1801.6,1801.5,2.78223]
[1745757446915,1.10976,1801.6,1801.5,1.6724]
[1745757447933,1.10976,1801.6,1801.5,2.78223]
[1745757448917,4.31749,1801.8,1801.5,1.6724]
[1745757449115,1.6232,1801.8,1801.6,2.71762]
[1745757449331,2.73288,1801.8,1801.7,2.7176]
[1745757449813,5.64502,1801.9,1801.7,1.6079]
[1745757450003,7.26822,1801.9,1801.8,2.71754]
[1745757450204,6.45382,1801.9,1801.8,2.71754]
[1745757450903,1.1097,1801.7,1801.6,4.31754]
[1745757451097,2.73288,1801.8,1801.6,5.92541]
[1745757451305,2.73288,1801.8,1801.7,1.1097]
[1745757451603,3.721,1801.9,1801.8,1.10964]
[1745757452199,1.7285,1802.0,1801.9,1.10958]
[1745757452503,4.82942,1802.2,1801.8,9.17241]
[1745757452700,3.2078,1802.3,1802.2,1.10939]
[1745757453219,2.5145,1802.4,1802.3,1.10933]
[1745757453399,1.10935,1802.3,1802.2,4.31718]
[1745757453706,1.7285,1802.3,1802.2,4.31718]
[1745757453908,2.83783,1802.3,1802.2,3.2078]
[1745757454402,2.83783,1802.3,1802.2,4.7699]
[1745757454803,2.83783,1802.3,1802.2,1.5621]
[1745757455303,1.10946,1802.1,1802.0,3.2078]
[1745757455504,1.10958,1801.9,1801.8,4.8362]
[1745757456204,4.83158,1801.9,1801.8,4.8362]
[1745757456703,3.722,1801.9,1801.8,5.94584]
[1745757456908,3.722,1801.9,1801.8,7.62074]
[1745757457208,1.10958,1801.9,1801.8,7.62074]
[1745757457408,1.10958,1801.9,1801.8,6.5111]
[1745757457604,1.10958,1801.9,1801.8,7.62074]
[1745757458401,1.10958,1801.9,1801.8,4.0404]
[1745757459408,2.77368,1801.9,1801.8,4.0404]
[1745757460210,1.10955,1802.0,1801.8,6.72954]
[1745757460409,1.10955,1802.0,1801.9,1.5795]
[1745757461107,4.83155,1802.0,1801.9,1.5795]
[1745757462213,4.83155,1802.0,1801.9,2.68908]
[1745757462413,3.722,1802.0,1801.9,2.68908]
[1745757462910,4.83152,1802.0,1801.9,2.4376]
[1745757463212,1.10952,1802.0,1801.9,2.4376]
[1745757463713,1.10952,1802.0,1801.9,3.54718]
[1745757464313,2.77361,1802.1,1802.0,1.10952]
[1745757464520,2.77361,1802.1,1802.0,2.75172]
[1745757464710,2.77361,1802.1,1802.0,1.6422]
[1745757465015,1.10951,1802.1,1802.0,2.75172]
[1745757465511,1.10951,1802.1,1802.0,1.6422]
[1745757470523,1.10952,1802.0,1801.9,0.8581]
[1745757470717,1.10958,1801.9,1801.8,6.75079]
[1745757471719,2.68667,1802.0,1801.9,1.10958]
[1745757471916,2.68662,1802.0,1801.9,2.71038]
[1745757472307,1.10952,1802.0,1801.9,2.71038]
[1745757473421,1.5771,1802.2,1801.9,1.6008]
[1745757473626,1.10948,1802.1,1802.0,2.839]
[1745757473828,1.10948,1802.1,1802.0,1.1095]
[1745757474429,1.5771,1802.2,1802.0,1.1095]
[1745757474729,1.5771,1802.2,1801.8,6.81449]
[1745757475023,2.68653,1802.2,1802.1,1.10946]
[1745757475226,1.10946,1802.1,1802.0,1.10947]